bitfinex-derivatives/quotes_ETHF0:USTF0_20250807
["timestamp","ask_amount","ask_price","bid_price","bid_amount"]
[1754577346889,1.1154,3824.3,3824.2,0.5229]
[1754577347084,1.1154,3824.3,3823.9,0.415]
[1754577347388,20.54309,3824.8,3824.0,0.52293]
[1754577347389,0.752,3824.4,3824.0,0.52293]
[1754577347581,1.1154,3824.1,3824.0,0.415]
[1754577348281,1.63836,3823.9,3823.7,0.8116]
[1754577348485,0.752,3823.5,3823.4,0.52302]
[1754577348689,1.1154,3823.5,3823.4,0.93802]
[1754577349286,1.1154,3823.5,3823.4,1.33462]
[1754577349488,1.36891137,3825.1,3824.9,0.52281]
[1754577349687,0.3847,3825.8,3825.0,0.52279]
[1754577349988,0.3634,3825.3,3825.1,0.8116]
[1754577350191,0.3847,3825.2,3825.1,1.33439]
[1754577350392,1.1154,3825.5,3825.3,0.8116]
[1754577350591,1.1154,3825.4,3825.3,1.33436]
[1754577350786,1.1154,3825.4,3824.8,0.3966]
[1754577350988,1.1154,3825.3,3824.8,0.8116]
[1754577351186,0.3847,3825.5,3825.2,0.52276]
[1754577351490,1.1154,3825.5,3825.2,0.52276]
[1754577351688,0.52273,3825.6,3825.2,0.52276]
[1754577351886,1.1154,3825.3,3825.2,0.415]
[1754577352187,1.1154,3825.6,3825.0,0.52279]
[1754577352393,0.7481,3825.3,3825.1,0.415]
[1754577352683,0.52277,3825.3,3824.8,0.52282]
[1754577352885,2.3067,3826.0,3825.1,2.11858]
[1754577352886,1.0,3826.0,3825.1,2.11858]
[1754577353086,1.3847,3826.0,3825.9,0.8116]
[1754577353486,1.3847,3826.0,3825.9,1.1788]
[1754577353487,1.0,3826.0,3825.9,1.1788]
[1754577354992,1.3847,3826.0,3825.9,1.1788]
[1754577355192,1.3847,3826.0,3825.9,0.8116]
[1754577355589,1.0,3826.0,3825.9,1.1788]
[1754577357190,1.3847,3826.0,3825.9,1.1788]
[1754577357397,1.752,3826.0,3825.9,0.8116]
[1754577357994,1.0,3826.0,3825.9,1.1788]
[1754577362291,0.5429,3826.0,3825.9,1.1788]
[1754577362800,0.8159,3827.2,3826.9,0.8116]
[1754577363096,0.4486,3826.5,3826.3,0.52262]
[1754577363291,1.2006,3826.4,3826.3,1.33422]
[1754577363500,0.3847,3826.4,3826.3,1.33422]
[1754577363702,0.8159,3826.5,3826.4,0.52259]
[1754577363902,0.52261,3826.4,3826.3,0.3966]
[1754577364099,0.5226,3826.5,3826.4,0.52261]
[1754577364292,0.52259,3826.6,3826.2,0.415]
[1754577364492,0.3847,3826.7,3826.0,1.70325]
[1754577364803,1.33849,3826.5,3826.4,0.5226]
[1754577365302,0.8159,3826.5,3826.4,0.5226]
[1754577365503,0.8159,3826.5,3826.4,1.3342]
[1754577367002,0.3847,3826.7,3826.6,1.33418]
[1754577367198,0.3847,3826.7,3826.1,1.30663]
[1754577367199,0.90725,3826.9,3826.7,0.52256]
[1754577367402,1.27455,3826.9,3826.8,0.8116]
[1754577367600,0.90725,3826.9,3826.6,0.52257]
[1754577367896,0.52256,3826.8,3826.5,1.33419]
[1754577368101,0.3847,3826.9,3826.3,0.52261]
[1754577368307,0.4486,3826.6,3826.1,0.0713]
[1754577368605,0.8159,3826.3,3826.2,0.52263]
[1754577368800,0.8159,3826.3,3826.2,0.93763]
[1754577369001,0.5226,3826.5,3826.2,0.52263]
[1754577369500,1.2006,3826.4,3826.2,0.52263]
[1754577369801,0.3847,3826.3,3826.2,0.93763]
[1754577369997,1.2006,3826.3,3826.2,0.93763]
[1754577370197,0.3847,3826.3,3826.2,1.33423]
[1754577370407,1.2006,3826.3,3826.2,1.33423]
[1754577370902,0.3847,3826.2,3826.0,1.33425]
[1754577371105,1.2006,3826.1,3826.0,1.33425]
[1754577371402,0.5227,3825.7,3825.2,0.8116]
[1754577371600,0.52269,3825.9,3825.5,0.52272]
[1754577371797,1.30653,3826.4,3825.4,0.52274]
[1754577372104,0.8159,3825.5,3825.4,1.33433]
[1754577372292,1.72333,3825.5,3825.4,0.8116]
[1754577372497,0.752,3825.3,3825.2,0.52277]
[1754577372693,1.30668,3826.0,3824.6,0.3966]
[1754577372896,1.2142,3825.6,3825.4,0.52273]
[1754577373096,1.2142,3825.5,3825.4,0.52273]
[1754577373299,0.8215,3825.5,3825.4,0.52273]
[1754577373499,0.67221422,3826.4,3823.8,0.19585636]
[1754577373715,0.4363,3824.6,3824.3,0.52289]
[1754577374001,0.3927,3824.3,3823.8,0.52295]
[1754577374199,0.8215,3824.0,3823.7,0.88486]
[1754577374500,0.19778707,3824.9,3822.8,1.30775]
[1754577374501,0.7779,3823.6,3823.3,0.3619]
[1754577374702,0.8215,3823.5,3823.3,0.52302]
[1754577375005,1.30724,3824.4,3822.9,1.39178116]
[1754577375006,1.2142,3823.2,3822.9,1.39178116]
[1754577375200,0.8215,3823.1,3822.9,1.39178116]
[1754577375401,1.2142,3823.0,3822.9,1.39178116]
[1754577375802,1.2142,3823.0,3822.9,1.75368116]
[1754577376199,0.52296,3823.9,3823.0,0.0645]
[1754577376397,0.3927,3823.8,3823.0,0.0645]
[1754577376603,1.2142,3823.6,3823.4,0.812]
[1754577376802,0.8215,3823.5,3823.4,0.4501]
[1754577377002,1.2142,3823.4,3823.2,0.97313]
[1754577377199,0.3927,3823.3,3823.2,0.97313]
[1754577377401,1.2142,3823.2,3823.0,0.52306]
[1754577377600,0.52298,3823.7,3823.2,0.52304]
[1754577377905,0.52301,3823.5,3822.9,1.75368116]
[1754577378101,0.3927,3823.4,3822.9,1.75368116]
[1754577378296,0.3927,3823.2,3822.9,1.75368116]
[1754577378502,1.2142,3823.0,3822.9,1.75368116]
[1754577378701,1.2142,3823.0,3822.9,0.94168116]
[1754577379305,0.7779,3822.9,3822.0,0.812]
[1754577379501,19.21,3823.3,3822.0,0.812]
[1754577379502,1.2142,3822.2,3822.1,0.52319]
[1754577380001,1.2142,3822.2,3822.1,1.33519]
[1754577380002,0.3927,3822.2,3822.1,1.33519]
[1754577380408,0.7779,3822.2,3822.1,0.52319]
[1754577380613,1.2142,3822.2,3822.1,0.52319]
[1754577380804,0.3927,3822.2,3822.1,1.33519]
[1754577381711,0.7779,3822.2,3822.1,0.97329]
[1754577381913,0.7779,3822.2,3822.1,1.33519]
[1754577382409,0.3927,3822.2,3821.5,0.3909]
[1754577382607,0.52324,3821.7,3821.5,0.3909]
[1754577382816,0.8215,3821.6,3821.5,0.3909]
[1754577383114,0.8215,3821.6,3820.9,0.3619]
[1754577383115,0.8215,3821.5,3821.4,0.52327]
[1754577383323,0.3927,3821.6,3821.4,0.52327]
[1754577383622,0.95944,3822.5,3822.3,0.52315]
[1754577383825,19.212,3823.1,3822.0,0.3402]
[1754577383826,1.3077,3823.0,3822.0,0.3402]
[1754577384126,0.52312,3822.7,3822.3,0.52315]
[1754577384322,0.52313,3822.6,3822.2,0.52317]
[1754577384621,0.4363,3822.5,3822.4,0.52314]
[1754577384821,0.3852,3822.5,3822.4,1.70434]
[1754577385322,0.4363,3822.8,3822.4,1.70434]
[1754577385323,0.8215,3822.9,3822.8,0.841]
[1754577385716,1.2142,3822.8,3822.6,1.36412]
[1754577385917,0.52305,3823.2,3822.7,0.5231]
[1754577386120,0.52307,3823.1,3822.7,0.52311]
[1754577386418,0.4363,3823.0,3822.1,1.30798]
[1754577386617,1.2142,3823.2,3822.1,0.841]
[1754577387015,1.2142,3823.1,3822.1,0.841]
[1754577387215,1.30767,3823.0,3822.1,1.36418]
[1754577387418,0.52313,3822.6,3822.2,0.52318]
[1754577387627,0.7779,3822.1,3821.9,0.91411]
[1754577387922,0.8215,3822.0,3821.9,0.841]
[1754577388520,0.829,3821.9,3821.7,0.841]
[1754577388726,1.2142,3821.5,3821.4,0.3909]
[1754577388927,0.3852,3821.4,3821.3,0.841]
[1754577389122,0.3852,3821.4,3821.3,1.1812]
[1754577389622,0.52318,3822.2,3821.8,0.3909]
[1754577389825,0.8215,3822.1,3822.0,0.841]
[1754577390126,1.2142,3822.1,3822.0,0.841]
[1754577390720,0.4363,3822.2,3822.1,1.1812]
[1754577390921,0.8215,3822.2,3822.1,0.841]
[1754577391123,1.2142,3822.2,3822.1,0.3909]
[1754577391720,0.3927,3821.7,3821.4,0.52328]
[1754577392024,1.2142,3821.6,3821.4,1.36428]
[1754577392225,0.3852,3821.5,3821.4,1.36428]
[1754577392425,0.3852,3821.5,3821.4,1.70448]
[1754577393019,1.2142,3821.5,3821.4,0.841]
[1754577393224,0.52329,3821.4,3821.2,0.3909]
[1754577393530,0.8215,3821.0,3820.9,0.841]
[1754577393729,0.52338,3820.8,3820.4,0.52342]
[1754577394031,0.3852,3820.3,3820.2,0.7311]
[1754577394239,0.8215,3820.3,3820.2,0.3909]
[1754577394629,0.3852,3820.7,3820.6,0.7903]
[1754577394928,0.3927,3820.9,3820.8,1.31367]
[1754577396235,0.3927,3820.9,3820.8,0.7903]
[1754577397130,0.3927,3820.9,3820.7,0.52338]
[1754577397336,0.3927,3820.9,3820.8,0.7903]
[1754577397535,0.91598,3821.5,3820.8,1.6993]
[1754577397737,0.8215,3821.2,3821.1,0.52333]
[1754577397940,0.8215,3821.2,3821.1,0.97343]
[1754577398130,0.3927,3821.5,3821.4,0.52329]
[1754577398335,0.7779,3821.5,3821.4,1.31359]
[1754577398536,0.3927,3821.5,3821.4,1.31359]
[1754577398732,0.3927,3821.5,3821.3,0.52329]
[1754577398946,0.8215,3821.4,3821.3,0.52329]
[1754577399128,1.2142,3821.3,3821.1,0.841]
[1754577399434,1.30831,3821.2,3820.1,0.841]
[1754577399739,1.2142,3820.5,3820.4,0.52341]
[1754577400241,0.829,3820.5,3819.9,1.39252071]
[1754577400540,0.7779,3820.8,3819.9,1.78342071]
[1754577400839,0.8215,3820.6,3820.5,0.52339]
[1754577401028,0.3852,3820.4,3820.0,0.3909]
[1754577401228,0.8215,3820.3,3820.0,0.841]
[1754577401432,0.3927,3820.5,3820.3,0.52342]
[1754577401835,0.8215,3820.4,3820.3,0.52342]
[1754577402033,0.3852,3820.2,3820.0,0.841]
[1754577402337,0.8215,3820.1,3820.0,1.36448]
[1754577402844,0.8215,3820.1,3820.0,0.91438]
[1754577403540,0.8425,3820.5,3820.4,0.52342]
[1754577404029,1.2126,3820.5,3820.4,0.52342]
[1754577404543,1.1789,3820.5,3820.4,0.52342]
[1754577404836,0.359,3820.5,3820.4,0.52342]
[1754577405036,0.359,3820.5,3820.4,1.28932]
[1754577405437,1.36891137,3821.6,3820.9,1.30836]
[1754577405631,0.8199,3821.6,3821.4,0.52328]
[1754577405836,0.8199,3821.5,3821.1,0.7659]
[1754577406038,1.34314,3821.8,3821.2,0.3832]
[1754577406244,0.3701,3821.6,3821.2,1.30829]
[1754577406444,0.3701,3821.6,3821.5,1.28917]
[1754577406739,0.66950298,3822.0,3821.7,0.3832]
[1754577406940,1.48940298,3822.0,3821.9,0.52322]
[1754577407147,1.03960298,3822.0,3821.9,0.8134]
[1754577407340,1.03960298,3822.0,3821.9,1.67232]
[1754577407543,0.3701,3822.0,3821.9,1.67232]
[1754577407847,0.8199,3822.0,3821.9,0.3832]
[1754577408942,0.8199,3822.0,3821.9,0.8134]
[1754577409148,0.8199,3822.0,3821.9,0.3832]
[1754577410143,0.66950298,3822.3,3822.2,0.52317]
[1754577410348,0.66950298,3822.6,3822.5,1.67223]
[1754577410544,0.3701,3822.6,3822.5,1.67223]
[1754577410745,0.52316,3822.3,3822.0,0.52319]
[1754577410947,1.0964,3822.5,3822.1,0.3832]
[1754577411242,1.34307,3822.2,3822.1,0.3832]
[1754577411442,0.2765,3822.2,3821.8,0.8134]
[1754577411635,0.4498,3822.0,3821.9,0.3832]
[1754577412347,0.8199,3822.0,3821.9,0.3832]
[1754577413639,1.30806,3821.9,3821.2,0.52331]
[1754577413844,0.8199,3821.4,3821.3,0.3832]
[1754577414148,0.2768,3821.5,3821.4,1.28948]
[1754577416146,0.66950298,3822.3,3821.4,0.7662]
[1754577416450,0.4498,3822.0,3821.7,0.336]
[1754577416647,0.3701,3821.9,3821.8,0.4302]
[1754577417148,0.3701,3822.1,3822.0,0.4302]
[1754577417345,0.3701,3822.1,3822.0,1.1494]
[1754577417545,0.8199,3822.1,3822.0,1.1494]
[1754577418446,0.3701,3822.1,3822.0,1.1494]
[1754577418849,0.3701,3822.1,3822.0,0.7662]
[1754577419149,0.3701,3822.1,3822.0,1.1494]
[1754577419547,0.8199,3822.1,3822.0,1.1494]
[1754577420052,0.2768,3822.7,3822.5,0.4302]
[1754577420353,0.2768,3822.7,3822.6,0.7662]
[1754577420550,0.6469,3822.7,3822.6,0.7662]
[1754577421246,0.2768,3822.7,3822.5,0.336]
[1754577421448,0.2768,3822.7,3822.6,0.7662]
[1754577421751,0.6469,3822.7,3822.6,0.7662]
[1754577422048,0.2768,3822.7,3822.6,0.7662]
[1754577422544,0.3701,3823.1,3822.8,0.52306]
[1754577422749,0.66950298,3823.4,3823.1,0.52303]
[1754577422951,0.66950298,3823.6,3823.2,0.7662]
[1754577423147,0.8199,3823.3,3823.2,0.4302]
[1754577423348,0.8199,3823.5,3822.6,0.3832]
[1754577423543,1.30748,3823.4,3822.6,0.90629]
[1754577423742,0.52307,3822.9,3822.6,0.3832]
[1754577423940,0.52307,3822.9,3822.1,1.30792]
[1754577423941,0.2768,3823.4,3822.8,0.3832]
[1754577424147,0.8199,3824.1,3823.6,0.3832]
[1754577424352,0.8199,3824.4,3823.2,1.1494]
[1754577424554,0.8199,3823.8,3823.5,0.8134]
[1754577424748,0.8199,3824.4,3824.2,0.4302]
[1754577424949,0.3701,3824.5,3824.3,0.52287]
[1754577425147,0.7996,3824.9,3824.3,0.52287]
[1754577425148,0.4498,3824.8,3824.6,0.52282]
[1754577425354,0.8199,3825.0,3824.5,0.52283]
[1754577425555,0.8199,3823.6,3823.4,0.3832]
[1754577425857,0.8199,3823.5,3823.4,0.3832]
[1754577429155,0.3701,3824.0,3823.9,0.8134]
[1754577429349,0.3701,3824.0,3823.9,1.1494]
[1754577429553,0.3701,3824.2,3824.0,0.7192]
[1754577429753,0.3701,3824.2,3824.1,0.8134]
[1754577430059,0.3701,3824.4,3824.3,0.336]
[1754577430261,0.3701,3824.4,3824.3,0.7662]
[1754577430561,19.70783,3824.6,3824.3,0.7662]
[1754577430562,0.5228,3824.8,3824.3,1.28905]
[1754577430859,0.8199,3824.6,3824.5,0.3832]
[1754577431253,0.8199,3824.6,3824.5,0.8134]
[1754577431655,0.52285,3824.4,3824.0,0.8134]
[1754577431855,0.3701,3824.2,3824.1,1.67228]
[1754577432050,0.3701,3824.2,3824.1,1.1494]
[1754577432358,0.52291,3824.0,3823.8,0.3832]
[1754577432558,0.2768,3823.7,3823.4,0.3832]
[1754577432752,0.8199,3823.6,3823.3,0.95319]
[1754577432952,0.8199,3823.6,3823.5,0.3509]
[1754577433555,0.4491,3824.8,3823.7,1.30734]
[1754577433757,0.3591,3824.8,3824.5,0.87372]
[1754577434052,0.52276,3825.1,3824.8,0.3289]
[1754577434258,0.88186,3825.1,3825.0,0.414]
[1754577434459,1.33096,3825.1,3825.0,0.3509]
[1754577434860,0.8082,3825.1,3825.0,0.3509]
[1754577435153,0.8082,3825.1,3824.6,0.414]
[1754577435358,0.52281,3824.7,3824.1,0.52288]
[1754577435556,0.52281,3824.7,3823.9,0.414]
[1754577435557,0.8082,3824.6,3824.3,0.7649]
[1754577435754,0.8082,3824.5,3824.4,0.3509]
[1754577435954,0.8082,3824.5,3824.4,0.7649]
[1754577436153,0.4491,3824.8,3824.5,0.3289]
[1754577436349,0.3591,3824.7,3824.6,0.7429]
[1754577436554,0.3591,3825.0,3824.6,1.0938]
[1754577436756,0.88186,3825.1,3824.1,1.0938]
[1754577437060,0.8082,3824.9,3824.6,0.3289]
[1754577437254,0.8082,3824.8,3824.7,0.7649]
[1754577437962,0.3591,3824.8,3824.7,1.0938]
[1754577438162,0.8082,3824.8,3824.7,1.0938]
[1754577438362,0.8082,3824.8,3824.7,0.7649]
[1754577438565,0.3591,3824.5,3824.3,0.3509]
[1754577438750,0.3591,3824.1,3824.0,0.3509]
[1754577438958,0.52288,3824.2,3824.0,0.3509]
[1754577439164,0.8082,3824.1,3824.0,0.3509]
[1754577440961,0.88198,3824.2,3824.1,0.7429]
[1754577441358,1.33108,3824.2,3824.1,0.414]
[1754577441566,0.8082,3824.2,3824.1,0.414]
[1754577442458,0.8082,3824.2,3824.0,0.3509]
[1754577442459,1.33109,3824.1,3823.7,0.414]
[1754577442763,0.3591,3823.9,3823.7,0.7649]
[1754577443064,0.3591,3823.8,3823.7,0.7649]
[1754577443358,0.3591,3824.0,3823.7,0.87384]
[1754577443561,0.2696,3824.4,3824.3,0.3289]
[1754577443758,0.2696,3824.4,3824.3,0.7429]
[1754577443964,0.8082,3824.7,3824.4,0.3509]
[1754577444166,1.33102,3824.7,3824.6,0.7649]
[1754577444558,0.52282,3824.7,3824.6,1.0938]
[1754577444758,0.52282,3824.7,3824.6,0.3509]
[1754577444759,1.33102,3824.7,3824.6,0.3509]
[1754577444966,0.5228,3824.8,3824.3,0.7649]
[1754577445159,1.331,3824.8,3824.4,0.87374]
[1754577445461,0.3591,3824.7,3824.6,1.0938]
[1754577445665,0.3591,3824.7,3824.6,0.7429]
[1754577445865,0.3591,3824.9,3824.6,1.0938]
[1754577446060,0.88189,3824.9,3824.6,1.0938]
[1754577446266,0.88189,3824.9,3824.8,1.0938]
[1754577446663,1.33099,3824.9,3824.8,0.3509]
[1754577448458,1.33103,3824.5,3824.4,0.3509]
[1754577448662,1.0778,3824.3,3824.0,0.3509]
[1754577448868,1.30713,3824.4,3824.0,0.3509]
[1754577448869,0.8082,3824.1,3824.0,0.3509]
[1754577449063,0.8082,3824.1,3823.5,0.414]
[1754577449064,0.88205,3823.6,3823.5,0.7649]
[1754577449265,1.33115,3823.6,3823.5,0.7649]
[1754577449464,1.33115,3823.6,3823.5,0.3509]
[1754577450066,0.52306,3822.8,3822.7,0.7429]
[1754577450266,0.88216,3822.8,3822.7,0.414]
[1754577450463,0.88222,3822.4,3822.3,0.414]
[1754577450665,0.88227,3822.0,3821.9,0.414]
[1754577451067,0.88227,3822.0,3821.9,0.7429]
[1754577451268,0.52321,3821.8,3820.8,0.7429]
[1754577451468,0.52321,3821.8,3820.7,3.65103085]
[1754577451469,0.52321,3821.8,3820.7,1.30837]
[1754577451662,0.52319,3821.9,3821.4,0.3289]
[1754577451873,0.52319,3821.9,3821.5,0.7429]
[1754577452073,0.52319,3821.9,3821.7,1.0938]
[1754577452273,0.52319,3821.9,3821.8,0.7429]
[1754577452475,0.52318,3822.0,3821.8,0.7429]
[1754577452670,0.3591,3822.5,3822.0,0.414]
[1754577452865,0.52315,3822.2,3822.1,1.0938]
[1754577453070,1.33135,3822.2,3822.1,0.7649]
[1754577453470,0.8082,3822.2,3822.1,0.7649]
[1754577453874,0.3591,3822.2,3822.1,0.7649]
[1754577454779,0.88223,3822.4,3822.2,0.7649]
[1754577454976,0.3591,3822.3,3822.2,0.3289]
[1754577455378,0.88223,3822.3,3822.2,0.3289]
[1754577455582,0.88223,3822.3,3822.2,0.3509]
[1754577455884,0.3591,3821.9,3821.7,1.0938]
[1754577456082,0.3591,3821.9,3821.8,0.7649]
[1754577456383,0.8082,3821.9,3821.8,0.7649]
[1754577456778,0.3591,3821.9,3821.8,1.0938]
[1754577457084,0.52315,3822.2,3821.8,0.52319]
[1754577457284,0.3591,3822.6,3822.0,1.0938]
[1754577457578,0.3591,3822.2,3822.1,0.7429]
[1754577458275,0.3591,3822.2,3822.1,1.0938]
[1754577459584,0.8082,3822.2,3822.1,0.7649]
[1754577459778,0.52312,3822.4,3822.1,1.0938]
[1754577459982,1.198,3822.8,3822.1,1.0938]
[1754577460281,0.52313,3822.4,3822.1,0.7649]
[1754577460485,0.3591,3822.2,3822.1,0.414]
[1754577460686,0.3591,3822.2,3822.1,0.7429]
[1754577460981,0.6757722,3823.3,3820.6,3.03081]
[1754577461178,0.52303,3823.1,3822.3,0.52312]
[1754577461378,0.3591,3823.0,3822.4,0.7429]
[1754577461579,0.3591,3823.0,3822.4,0.3289]
[1754577461780,0.3591,3822.9,3822.6,1.0938]
[1754577462083,0.3898,3823.1,3822.3,0.52312]
[1754577462279,0.3591,3823.0,3822.4,1.0938]
[1754577462481,0.3591,3823.0,3822.5,0.7649]
[1754577462780,0.4491,3823.2,3822.3,1.30783]
[1754577463083,0.52299,3823.4,3822.8,0.8078]
[1754577463281,0.3793,3823.2,3822.9,1.1257]
[1754577463476,0.52301,3823.2,3823.1,0.8078]
[1754577463682,1.68771,3823.2,3823.1,0.8078]
[1754577464181,0.52302,3823.1,3822.5,0.90139]
[1754577464482,0.52302,3823.1,3822.5,0.52309]
[1754577464883,0.8102,3823.0,3822.7,1.1257]
[1754577465181,0.8102,3823.0,3820.8,2.34266085]
[1754577465182,0.3545,3823.7,3822.3,0.3783]
[1754577465381,0.3545,3823.7,3822.3,0.8078]
[1754577465382,0.95397,3822.7,3822.3,0.8078]
[1754577465585,0.95397,3822.7,3822.4,0.4295]
[1754577465586,0.8102,3822.6,3822.4,0.4295]
[1754577465783,0.8102,3822.5,3822.4,0.4295]
[1754577466487,0.95395,3822.9,3822.4,0.7474]
[1754577466684,0.90238,3822.7,3822.6,0.7474]
[1754577466988,1.33328,3822.7,3822.6,0.4295]
[1754577467482,0.8102,3822.7,3822.6,0.4295]
[1754577468181,0.8102,3822.5,3822.4,0.4295]
[1754577468382,1.30742,3823.5,3822.4,0.7474]
[1754577468576,0.52305,3822.9,3822.4,1.27051]
[1754577468780,0.95397,3822.8,3822.6,0.7474]
[1754577468976,0.3793,3822.7,3822.6,0.3179]
[1754577469184,1.30732,3823.8,3822.4,1.30777]
[1754577469381,0.52301,3823.2,3822.9,0.3179]
[1754577469576,0.8102,3823.0,3822.9,0.7474]
[1754577470178,0.8102,3823.0,3822.0,0.4295]
[1754577470382,0.4309,3822.6,3822.3,0.52312]
[1754577470580,0.8102,3822.6,3822.4,1.27051]
[1754577470787,0.3793,3822.5,3822.4,1.21931]
[1754577470988,0.3793,3822.5,3822.4,0.90141]
[1754577471389,0.3793,3822.5,3822.4,1.33091]
[1754577471590,0.3545,3822.9,3822.8,0.7474]
[1754577472786,0.3793,3823.4,3822.8,0.7474]
[1754577473091,0.8102,3823.3,3823.2,0.3179]
[1754577473485,1.3332,3823.3,3823.1,0.52301]
[1754577473680,0.4309,3823.2,3823.0,0.84092]
[1754577473884,0.8102,3823.2,3823.1,0.4295]
[1754577474084,1.1647,3823.2,3823.1,0.8078]
[1754577474292,1.1647,3823.2,3823.1,0.3783]
[1754577475584,0.52306,3822.9,3822.6,0.52308]
[1754577475787,0.52309,3822.6,3822.2,0.52314]
[1754577476089,0.8102,3822.4,3822.2,0.52313]
[1754577476291,1.1647,3822.3,3822.2,0.52313]
[1754577476491,0.4309,3822.2,3822.0,0.95266]
[1754577476790,0.4309,3822.2,3822.1,0.8078]
[1754577477091,0.3793,3822.2,3822.1,1.1257]
[1754577477290,0.3793,3822.2,3822.1,1.8978]
[1754577477681,1.30721,3824.1,3821.8,2.616]
[1754577477882,0.52297,3823.5,3823.2,0.523]
[1754577478086,0.7338,3823.4,3823.3,0.4295]
[1754577478689,0.52299,3823.3,3822.9,0.52304]
[1754577478892,0.7338,3823.3,3823.1,0.95252]
[1754577479094,0.7338,3823.2,3823.1,0.4295]
[1754577479985,1.1647,3823.2,3823.1,0.4295]
[1754577482193,0.8102,3823.2,3823.1,0.4295]
[1754577482493,1.1647,3823.2,3823.1,0.4295]
[1754577484396,0.7338,3823.2,3823.1,0.4295]
[1754577484596,0.7338,3824.1,3823.9,0.52291]
[1754577484896,0.95378,3824.2,3824.1,0.4295]
[1754577485087,0.4309,3824.2,3824.1,0.4295]
[1754577485293,1.1647,3824.2,3824.1,0.4295]
[1754577485487,0.3545,3824.2,3824.1,0.4295]
[1754577485688,0.7338,3824.6,3824.5,0.4295]
[1754577485894,1.1647,3824.6,3824.5,0.4295]
[1754577486996,0.7338,3824.6,3824.5,0.4295]
[1754577487595,0.52275,3825.1,3824.2,0.289]
[1754577487796,1.25657,3825.0,3824.9,0.4295]
[1754577488103,1.68747,3825.0,3824.9,0.4295]
[1754577488396,1.1647,3825.0,3824.9,0.4295]
[1754577489101,0.7338,3825.0,3824.9,0.4295]
[1754577489398,0.7338,3825.0,3824.9,0.7185]
[1754577489793,0.3545,3825.0,3824.9,1.2528]
[1754577489996,1.5488,3825.6,3825.5,0.7222]
[1754577490196,1.4787,3826.0,3825.9,0.52264]
[1754577490405,1.858,3826.0,3825.9,0.9638]
[1754577490695,2.5736,3826.0,3825.9,0.9638]
[1754577490896,1.0,3826.0,3825.9,0.9638]
[1754577491090,1.0,3826.0,3825.9,0.4295]
[1754577491296,1.0,3826.0,3825.9,0.7185]
[1754577492501,1.7338,3826.0,3825.9,1.24113]
[1754577493596,0.3664,3826.7,3826.6,0.52254]
[1754577493797,0.7102,3826.7,3826.6,0.95444]
[1754577494298,0.52248,3827.1,3826.8,0.5225]
[1754577494299,0.7102,3827.0,3826.8,0.5225]
[1754577494499,0.5225,3826.9,3824.7,37.659]
[1754577494695,0.4138,3826.4,3825.4,0.4319]
[1754577494894,0.86641,3826.1,3825.8,0.52263]
[1754577495198,0.7102,3826.0,3825.9,0.4319]
[1754577495802,0.7102,3826.0,3825.9,0.717]
[1754577496104,0.3438,3826.0,3825.9,0.717]
[1754577496298,0.4138,3826.3,3826.0,0.95452]
[1754577496492,0.4138,3826.2,3826.1,0.4319]
[1754577497007,0.4138,3826.3,3826.2,0.4319]
[1754577497200,1.30608,3827.4,3826.5,0.52254]
[1754577497401,0.93628,3827.1,3826.8,0.5225]
[1754577497602,0.52248,3827.1,3826.8,0.9544]
[1754577497802,0.4138,3826.9,3826.8,0.4319]
[1754577498002,1.64649,3826.9,3826.8,0.4319]
[1754577498202,0.52249,3826.9,3826.5,0.52255]
[1754577498402,1.124,3826.8,3826.6,0.4319]
[1754577498707,1.124,3826.7,3826.6,0.4319]
[1754577499006,1.124,3826.7,3826.6,0.95444]
[1754577499312,0.52254,3826.6,3826.1,0.52259]
[1754577499505,0.52253,3826.7,3826.4,0.52256]
[1754577499704,1.30614,3827.2,3826.2,0.4319]
[1754577499905,0.52259,3826.3,3825.9,0.52263]
[1754577500103,1.124,3826.1,3826.0,0.95451]
[1754577500307,1.124,3826.1,3826.0,0.4319]
[1754577500502,1.30637,3826.6,3825.8,0.52264]
[1754577500702,1.124,3825.9,3825.8,0.95454]
[1754577501001,0.3438,3826.6,3826.5,0.52254]
[1754577501203,0.4138,3827.1,3826.5,0.4319]
[1754577501399,0.3438,3827.1,3827.0,0.95437]
[1754577501603,0.7102,3827.1,3827.0,0.95437]
[1754577501805,0.3438,3827.1,3827.0,1.23947]
[1754577502209,0.3664,3827.4,3827.3,0.52244]
[1754577502408,0.7802,3827.4,3827.3,0.52244]
[1754577502804,1.30583,3828.2,3827.0,0.4319]
[1754577502805,1.124,3827.3,3827.0,0.4319]
[1754577503105,1.124,3827.3,3826.7,0.2851]
[1754577503106,0.7102,3827.4,3826.9,0.4319]
[1754577503306,0.52242,3827.5,3827.1,0.52247]
[1754577503499,19.072,3828.5,3826.3,1.30644]
[1754577503500,1.124,3827.2,3826.4,0.4319]
[1754577503705,0.7802,3827.1,3827.0,0.52247]
[1754577503902,0.7102,3827.1,3827.0,0.4319]
[1754577504108,0.7102,3827.0,3826.7,0.95441]
[1754577504410,0.7102,3826.8,3826.7,0.52251]
[1754577505007,0.7102,3826.8,3826.7,0.95441]
[1754577505209,0.5224,3827.6,3826.7,0.717]
[1754577505406,0.7576,3827.8,3826.8,0.4319]
[1754577505713,0.52244,3827.4,3827.0,0.95437]